Cogmind - Beta 10.2 @@@ ROGUE MODE // 2022.01.18 @ 00:30:07 Player: hyperbole Result: Destroyed by as-81077 with Assembled Heavy Rifle Performance ------------- Evolutions (0) 0 Regions Visited (2) 400 Robots Destroyed (3) 15 Value Destroyed (132) 132 Prototype IDs (0) 0 Alien Tech Used (0) 0 Bonus (0) 0 TOTAL SCORE: 547 Bonus ------- None Cogmind --------- Core Integrity 0/250 Matter 252/300 Energy 72/100 System Corruption 1% Temperature Cool (0) Movement Hovering (76) Location -10/Mines Parts ------- > --- POWER (1) -------- (None) > --- PROPULSION (2) --- Combat Airjet Combat Airjet > --- UTILITY (2) ------ Small Storage Unit Targeting Computer > --- WEAPON (2) ------- (None) > --- INVENTORY (6) ---- Launcher Guidance Computer Light Armor Plating Light Armor Plating Peak State ------------ > --- POWER ------------ Light Deuterium Engine > --- PROPULSION ------- Combat Airjet Combat Airjet > --- UTILITY ---------- Small Storage Unit Targeting Computer > --- WEAPON ----------- Small Laser Heavy Assault Rifle > --- INVENTORY -------- Ion Engine Launcher Guidance Computer Light Armor Plating Light Armor Plating Assault Rifle [Rating: 18] Favorites ----------- Power Light Ion Engine Engine Light Ion Engine Propulsion Aluminum Leg Leg Aluminum Leg Hover Unit Combat Airjet Utility Small Storage Unit Storage Small Storage Unit Processor Targeting Computer Weapon Small Laser Energy Gun Small Laser Ballistic Gun Heavy Assault Rifle Build | -11 -10 -10 ------- Run | Scr Mat Min Slots Evolved . | . . . Power . | . . . Propulsion . | . . . Utility . | . . . Weapon . | . . . Parts Attached 14 | 6 . 8 Power 3 | 1 . 2 Engine 3 | 1 . 2 Core . | . . . Reactor . | . . . Propulsion 4 | 2 . 2 Treads . | . . . Leg 2 | 2 . . Wheel . | . . . Hover 2 | . . 2 Flight . | . . . Utility 2 | 1 . 1 Device . | . . . Storage 1 | 1 . . Processor 1 | . . 1 Hackware . | . . . Protection . | . . . Artifact . | . . . Weapon 5 | 2 . 3 Energy Gun 3 | 2 . 1 Energy Cannon . | . . . Ballistic Gun 2 | . . 2 Ballistic Cannon . | . . . Launcher . | . . . Special Weapon . | . . . Impact Weapon . | . . . Slashing Weapon . | . . . Piercing Weapon . | . . . Special Melee Weapon . | . . . Unidentified Prototypes . | . . . Parts Lost 9 | . . 9 Power 3 | . . 3 Propulsion 1 | . . 1 Utility . | . . . Weapon 5 | . . 5 Highest Loss Streak 6 | . . 6 Average Slot Usage (%) 89 | . 85 90 Engine 13 | . 14 13 Leg 16 | . 28 13 Hover 10 | . . 13 Storage 14 | . 14 14 Processor 10 | . . 13 Energy Gun 20 | . 28 18 Ballistic Gun 3 | . . 4 Naked Turns . | . . . Heaviest Build 13 | 10 10 13 Greatest Support 44 | 3 20 44 Greatest Overweight (x) 3 | 3 3 3 Average Overweight (x) . | 2 . . Largest Inventory Capacity 6 | 6 6 6 Average Capacity 5 | 5 6 6 Most Carried 6 | 2 2 6 Average Carried 4 | 1 2 5 Final Capacity 6 | 6 6 6 Final Carried 3 | 2 2 3 Class Distribution -------------------- 85% | Mutant 14% | Scavenger-Mutant Dominant Class ---------------- Mutant | -10/Materials Mutant | -10/Mines Resources | -11 -10 -10 ----------- Run | Scr Mat Min Matter Collected 298 | . . 298 Remotely . | . . . Salvage Created 141 | . . 141 Parts 9 | . . 9 Haulers Intercepted . | . . . Recyclers Shooed . | . . . Parts Field Recycled . | . . . Retrieved Matter . | . . . Parts Self-Destructed . | . . . Prevented . | . . . Kills | -11 -10 -10 ------- Run | Scr Mat Min Combat Hostiles Destroyed 4 | . . 4 Guns 4 | . . 4 Classes Destroyed 4 | . . 4 Grunt 1 | . . 1 Sentry 1 | . . 1 Demolisher 1 | . . 1 Assembled 1 | . . 1 Best Kill Streak 1 | . . 1 Combat Bots Only 1 | . . 1 Max Kills in Single Turn 1 | . . 1 Gunslinging . | . . . Exploded . | . . . Melee . | . . . Uniques/NPCs Destroyed . | . . . Combat | -11 -10 -10 -------- Run | Scr Mat Min Damage Taken 1063 | . 11 1052 Core 257 | . . 257 Absorbed by Shields . | . . . Core Remaining (%) 100 | 100 . . Volleys Fired 28 | . . 28 Largest 2 | . . 2 Hottest 90 | . . 90 Shots Fired 44 | . . 44 Gun 44 | . . 44 Cannon . | . . . Launcher . | . . . Special . | . . . Kinetic 17 | . . 17 Thermal 27 | . . 27 Explosive . | . . . Electromagnetic . | . . . Robot Hit Streak 6 | . . 6 Robot Miss Streak 4 | . . 4 Penetration Max . | . . . Secondary Targets . | . . . Shots Hit Robots 28 | . . 28 Core Hits 15 | . . 15 Critical Hits . | . . . Critical Kills . | . . . Critical Parts Destroyed . | . . . Melee Attacks . | . . . Impact . | . . . Slashing . | . . . Piercing . | . . . Sneak Attacks . | . . . Combat Hostiles . | . . . Follow-up Attacks . | . . . Damage Inflicted 371 | . . 371 Guns 371 | . . 371 Cannons . | . . . Explosions . | . . . Melee . | . . . Ramming . | . . . Kinetic 153 | . . 153 Thermal 218 | . . 218 Explosive . | . . . Electromagnetic . | . . . Impact . | . . . Slashing . | . . . Piercing . | . . . Highest Corruption 1 | . . 1 Average Corruption 1 | . . 1 Corruption Purged . | . . . Overload Shots . | . . . Overflow Damage . | . . . Projectiles . | . . . Explosions . | . . . Melee . | . . . Knockbacks . | . . . Impact . | . . . Kinetic . | . . . Secondary . | . . . Self-Inflicted Damage . | . . . Shots . | . . . Rammed . | . . . Targets Rammed . | . . . Kicked . | . . . Crushed . | . . . Highest Temperature 186 | . . 186 Average Temperature 44 | . . 44 Received Heat Transfer 48 | . 6 42 Siege Activations . | . . . Robots Corrupted . | . . . Combat Hostiles . | . . . Parts Fried . | . . . Impact Corruptions . | . . . Robots Melted . | . . . Combat Hostiles . | . . . Parts Melted . | . . . Heat Transferred 558 | . . 558 Parts Sabotaged . | . . . Parts Stolen . | . . . Parts Stripped . | . . . Power Chain Reactions . | . . . Missiles Intercepted . | . . . Alert | -11 -10 -10 ------- Run | Scr Mat Min Peak Influence 78 | . 9 78 Initial 3 | . . 3 Average 37 | . 5 52 Maximum Alert Level . | . . . Low Security (%) 100 | 100 100 100 Level 1 . | . . . Level 2 . | . . . Level 3 . | . . . Level 4 . | . . . Level 5 . | . . . High Security . | . . . Max Security . | . . . Squads Dispatched . | . . . Investigation . | . . . Extermination . | . . . Reinforcement . | . . . Assault . | . . . Garrison . | . . . Intercept . | . . . Construction Impeded . | . . . Haulers Reinforced . | . . . Stealth | -11 -10 -10 --------- Run | Scr Mat Min Distress Signals . | . . . Communications Jammed . | . . . Distress Signals . | . . . Times Spotted 14 | . 3 11 Peak Tracking Total 4 | . 3 4 Tactical Retreats . | . . . Traps | -11 -10 -10 ------- Run | Scr Mat Min Traps Triggered . | . . . Indirectly . | . . . Trap Hack Attempts . | . . . Triggered . | . . . Disarmed . | . . . Reprogrammed . | . . . Reused . | . . . Traps Extracted . | . . . Installed . | . . . Triggered . | . . . Machines | -11 -10 -10 ---------- Run | Scr Mat Min Machines Disabled . | . . . Max in Single Turn . | . . . Machines Sabotaged . | . . . Garrisons Compromised . | . . . Overloaded Fab Kills . | . . . Fab Network Shutdowns . | . . . Hacking | -11 -10 -10 --------- Run | Scr Mat Min Machines Accessed 2 | . 2 . Terminals 2 | . 2 . Fabricators . | . . . Repair Stations . | . . . Recycling Units . | . . . Scanalyzers . | . . . Garrison Access . | . . . Total Hacks 7 | . 7 . Successful 5 | . 5 . Failed 2 | . 2 . Catastrophic . | . . . Database Lockouts . | . . . Manual . | . . . Terminals 7 | . 7 . Fabricators . | . . . Repair Stations . | . . . Recycling Units . | . . . Scanalyzers . | . . . Garrison Access . | . . . Terminal Hacks 5 | . 5 . Record 3 | . 3 . Robot Analysis 2 | . 2 . Fabricator Hacks . | . . . Repair Station Hacks . | . . . Recycling Unit Hacks . | . . . Scanalyzer . | . . . Garrison Access Hacks . | . . . Unauthorized Hacks . | . . . Terminals . | . . . Fabricators . | . . . Repair Stations . | . . . Recycling Units . | . . . Scanalyzers . | . . . Garrison Access . | . . . Data Cores Recovered . | . . . Used . | . . . Hacking Detections 2 | . 2 . Full Trace Events 2 | . 2 . Feedback Events . | . . . Feedback Blocked . | . . . Robot Schematics Acquired . | . . . Robots Built . | . . . Matter . | . . . Time . | . . . Total Robot Build Rating . | . . . Part Schematics Acquired . | . . . Parts Built . | . . . Matter . | . . . Time . | . . . Total Part Build Rating . | . . . Parts Repaired . | . . . Time . | . . . Parts Recycled . | . . . Recycled Matter . | . . . Retrieved Matter . | . . . Retrieved Components . | . . . Parts Scanalyzed . | . . . Part Schematics Acquired . | . . . Parts Damaged . | . . . Bothacking | -11 -10 -10 ------------ Run | Scr Mat Min Used RIF Installer . | . . . Robots Hacked . | . . . Non-combat . | . . . Combat . | . . . Robot Hacks Applied . | . . . Relay Couplers Released . | . . . Robots Rewired . | . . . Allies Hacked . | . . . Hacks Repelled . | . . . Allies | -11 -10 -10 -------- Run | Scr Mat Min Total Allies . | . . . Largest Group . | . . . Highest-Rated Group . | . . . Highest-Rated Ally . | . . . Total Orders . | . . . Ally Attacks . | . . . Total Damage . | . . . Kills . | . . . Allies Corrupted . | . . . Allies Melted . | . . . Intel | -11 -10 -10 ------- Run | Scr Mat Min Robot Analysis Total 2 | . 2 . Derelict Logs Recovered . | . . . Drone Launches . | . . . Drone Recoveries . | . . . Exploration | -11 -10 -10 ------------- Run | Scr Mat Min Turns Passed 407 | 54 72 281 Spaces Moved 258 | 24 60 174 Core 29 | 24 1 4 Treads . | . . . Legs 130 | . 59 71 Wheels . | . . . Hover 99 | . . 99 Flight . | . . . Fastest Speed 50 | 50 120 76 Average Speed 109 | 172 121 96 Slowest Speed 200 | 200 200 200 Overloaded Moves . | . . . Propulsion Burnouts . | . . . Robots Hopped . | . . . Cave-ins Triggered . | . . . Exploration Rate (%) 20 | 4 24 34 Regions Visited 2 Branch Regions 1 Pre-discovered Areas . | . . . Known Exits Taken . | . . . Unknown Exits Taken 2 | 1 1 . Scrap Searched 1 | . . 1 Spaces Dug . | . . . Terrain Destroyed . | . . . Melee . | . . . Projectile . | . . . AOE . | . . . Terrain Rammed . | . . . Walls Destroyed . | . . . Machines Disabled . | . . . Actions | -11 -10 -10 --------- Run | Scr Mat Min Total 335 | 34 59 242 Wait 22 | 3 . 19 Move 256 | 23 59 174 Hop . | . . . Pick Up 10 | 2 . 8 Fast Attach 11 | 6 . 5 Attach 3 | . . 3 Detach . | . . . Swap . | . . . Drop 5 | . . 5 Fire 28 | . . 28 Melee . | . . . Ram . | . . . Kick . | . . . Crush . | . . . Escape Stasis . | . . . Rewire . | . . . Trap . | . . . Miscellaneous . | . . . Route ------- -11/Scrapyard -10/Materials -10/Mines (discovered 1 exit: [*Mat]) History --------- Turn | Location | Event 19 | -11/Scrapyard | Discovered new exit (range 15) 55 | -11/Scrapyard | Entered Materials 119 | -10/Materials | Discovered new exit (range 8) 127 | -10/Materials | Entered Mines 129 | -10/Mines | Joined a pair of Derelicts in attacking an 0b10 outpost 233 | -10/Mines | Assembled infested the area 238 | -10/Mines | Assisted by a Guerilla fighting off Assembled 258 | -10/Mines | Discovered new exit (range 14) 277 | -10/Mines | Lost 3 parts (1p1n1w) 317 | -10/Mines | Build established: Mutant 354 | -10/Mines | Core integrity fell below 50% 401 | -10/Mines | Core integrity fell below 20% 408 | -10/Mines | Destroyed by as-81077 with Assembled Heavy Rifle Last Messages --------------- 00306_ U-05 Engineer builds a Wall. 00332_ as-97573 destroyed. 00333_ Acquired 18 matter. 00335_ Searching scrap... 00335_ Found 27 Matter. 00335_ Found 32 Matter. 00336_ Acquired 13 matter. 00348_ as-19145 destroyed. 00373_ PA-GMC(g) destroyed. 00376_ Sml. Laser destroyed. 00384_ U-05 Engineer lays Concrete. 00384_ Lgt. Deuterium Engine destroyed. 00386_ Hvy. Assault Rifle destroyed. 00386_ System corrupted by crushing effect (+1). 00391_ as-60643 destroyed. 00399_ Assault Rifle destroyed. 00402_ Critical hit. 00402_ Ion Engine destroyed. 00402_ Acquired Beamcaster. 00404_ Beamcaster destroyed. Map ----- +----------------------------------------------------+ | ?????# #???????#"" ""#######???????# < | | ?????# """ #???????# * %# ##??????# | | ?????# """ #???????## # # # ##????## | | ?????# """ #######?###++#### #?#### | | ?????# #?# ### # ###*" " | | ?????# ! * #?# ! = " ### | | ?????# ####%=### ! ##?##### | | ?????#### ##??# ## ## ## ##??????### | | ????????# ##### ## ######?????????? | | ????????# ## ### # # #??????????????? | | ????????############### ##########??????????????? | | ????????????### ##### #???????????????????????? | | ???????###### #???????????????????????? | | ???????# #???????????????????????? | | ???????# #%######???????????????????????? | | ???????# %r ##??????????????????????????? | | ???????## #??????????????????????????? | | ????????## #??????????????????????????? | | ?????????## ##?????????????????????????? | | ??????????# ##????????????????????????? | | ??????????# ##???????????????????????? | | ??????????# ######??????????????????? | | ??????????## ## ##?????????????????? | | ???????????####### % ##????????????????? | | ?????????????????## #????????????????? | | ??????????????????## @ ! ##???????????????? | | ???????????????????## ###%%aa ## #???????? | | ????????????????????## ##?##% #????????? | | ?????????????????????# #???## ##????????? | | ?????????????????????# #????? ###?????????? | | ?????????????????????# ????? %=#####???????????? | | ????????????????????? ????? *##???????????????? | | ???????????????????? #????? #????????????????? | | ???????????????????? #????? #????????????????? | | ??????????????????? ?????? #????????????????? | | ?????????????????? ?????? #????????????????? | | ?????????????????? #?????? #????????????????? | | ?????????????????? #???????=#????????????????? | | ???????????????????? #???????? #????????????????? | | ????????????????????????????????%????????????????? | | ?????????????????????????????????????????????????? | | ?????????????????????????????????????????????????? | | ?????????????????????????????????????????????????? | | ?????????????????????????????????????????????????? | | ?????????????????????????????????????????????????? | | ?????????????????????????????????????????????????? | | ?????????????????????????????????????????????????? | | ?????????????????????????????????????????????????? | | ?????????????????????????????????????????????????? | | ?????????????????????????????????????????????????? | +----------------------------------------------------+ Best States ------------- Heat Dissipation 25 Energy Generation 14 Energy Capacity 250 Matter Stores 300 Matter Capacity 300 Sight Range 16 Terrain Scan Density 10 Evasion (%) 49 Targeting Accuracy 5 Item Schematics ----------------- None Robot Schematics ------------------ None Fabricated ------------ Nothing Alien Tech Used ----------------- None Achievements -------------- None Challenges ------------ None Game ------ Seed NeutrinoCooledMallet Manual? 0 Play Time 00:07:37 Cumulative 22.9 hours Start 2022.01.18 @ 00:23:42 End 2022.01.18 @ 00:30:07 Sessions 1 Manual Loads 0 Difficulty Rogue Special Mode None Game No. 25 Rogue 25 Adventurer 0 Explorer 0 Win Type - Total 0 Types 0/0/0/0/0/0/0/0/0 Lore% 19 Gallery% 30 Achievement% 19 Wizard Run 0 Options --------- ASCII 0 Keyboard 1 Movement Vi Keybinds 0 Fullscreen 2 Font 18/SmallcapsGlow Map View 76x50 Tactical HUD 1 Map Filters NONE Filters NONE Steam 1 RUN: ccc68909-eac0-41bc-8279-7240b3146c74